[Event "December 19 Late 2023"]
[Site "https://www.chess.com"]
[Date "2023.12.19"]
[Round "4"]
[White "Makaraci, Tunahan"]
[Black "Kucza, Karol"]
[Result "1/2-1/2"]
[Board "58"]
[TimeControl "180+1"]
[WhiteFideId "6356559"]
[BlackFideId "1159755"]
[WhiteElo "2112"]
[BlackElo "2307"]
[WhiteTeam "TUR"]
[BlackTeam "POL"]
[WhiteClock "0:00:14"]
[BlackClock "0:01:01"]

1. e4 {[%clk 0:03:00]}  e5 {[%clk 0:02:59]} 2. Nc3 {[%clk 0:02:59]}  Nf6 {[%clk 0:02:59]} 3. f4 {[%clk 0:02:56]}  d5 {[%clk 0:02:59]} 4. fxe5 {[%clk 0:02:56]}  Nxe4 {[%clk 0:02:59]} 5. Qf3 {[%clk 0:02:56]}  Nc6 {[%clk 0:02:59]} 6. Bb5 {[%clk 0:02:56]}  Be6 {[%clk 0:02:50]} 7. Nge2 {[%clk 0:02:44]}  Bc5 {[%clk 0:02:24]} 8. d4 {[%clk 0:02:15]}  Bb4 {[%clk 0:02:22]} 9. O-O {[%clk 0:02:15]}  Bxc3 {[%clk 0:02:21]} 10. Nxc3 {[%clk 0:02:13]}  Nxc3 {[%clk 0:02:11]} 11. Qxc3 {[%clk 0:02:11]}  Qd7 {[%clk 0:02:10]} 12. Bxc6 {[%clk 0:02:07]}  Qxc6 {[%clk 0:02:09]} 13. Qxc6+ {[%clk 0:02:07]}  bxc6 {[%clk 0:02:10]} 14. b3 {[%clk 0:02:02]}  O-O {[%clk 0:01:52]} 15. Ba3 {[%clk 0:02:02]}  Rfe8 {[%clk 0:01:50]} 16. Bc5 {[%clk 0:01:55]}  a6 {[%clk 0:01:46]} 17. Kf2 {[%clk 0:01:55]}  Bg4 {[%clk 0:01:46]} 18. h3 {[%clk 0:01:38]}  Bf5 {[%clk 0:01:45]} 19. Rac1 {[%clk 0:01:34]}  Re6 {[%clk 0:01:41]} 20. g4 {[%clk 0:01:33]}  Be4 {[%clk 0:01:41]} 21. Kg3 {[%clk 0:01:31]}  Rae8 {[%clk 0:01:38]} 22. c3 {[%clk 0:01:30]}  f6 {[%clk 0:01:34]} 23. exf6 {[%clk 0:01:29]}  Rxf6 {[%clk 0:01:35]} 24. Rxf6 {[%clk 0:01:28]}  gxf6 {[%clk 0:01:36]} 25. Re1 {[%clk 0:01:22]}  Kg7 {[%clk 0:01:34]} 26. Kf4 {[%clk 0:01:22]}  Kg6 {[%clk 0:01:33]} 27. h4 {[%clk 0:01:21]}  h5 {[%clk 0:01:34]} 28. Rg1 {[%clk 0:00:49]}  hxg4 {[%clk 0:01:29]} 29. Rxg4+ {[%clk 0:00:49]}  Kf7 {[%clk 0:01:29]} 30. h5 {[%clk 0:00:44]}  Bb1 {[%clk 0:01:25]} 31. h6 {[%clk 0:00:30]}  Re4+ {[%clk 0:01:21]} 32. Kg3 {[%clk 0:00:30]}  Rxg4+ {[%clk 0:01:21]} 33. Kxg4 {[%clk 0:00:31]}  Bxa2 {[%clk 0:01:16]} 34. b4 {[%clk 0:00:30]}  Bb1 {[%clk 0:01:15]} 35. Kf4 {[%clk 0:00:30]}  Kg6 {[%clk 0:01:12]} 36. Bf8 {[%clk 0:00:30]}  Kf7 {[%clk 0:01:10]} 37. Bc5 {[%clk 0:00:29]}  Bc2 {[%clk 0:01:09]} 38. Kg4 {[%clk 0:00:28]}  Kg6 {[%clk 0:01:08]} 39. Bf8 {[%clk 0:00:28]}  Bd3 {[%clk 0:01:07]} 40. Kf4 {[%clk 0:00:27]}  Bc2 {[%clk 0:01:04]} 41. Kg4 {[%clk 0:00:26]}  c5 {[%clk 0:01:03]} 42. dxc5 {[%clk 0:00:20]}  c6 {[%clk 0:01:03]} 43. Kf4 {[%clk 0:00:19]}  Bd3 {[%clk 0:01:03]} 44. Kg4 {[%clk 0:00:19]}  Bb1 {[%clk 0:01:02]} 45. Kf4 {[%clk 0:00:20]}  Bc2 {[%clk 0:01:02]} 46. Kg4 {[%clk 0:00:20]}  Kf7 {[%clk 0:01:03]} 47. Bd6 {[%clk 0:00:20]}  Ke6 {[%clk 0:01:00]} 48. Kf4 {[%clk 0:00:19]}  Bb1 {[%clk 0:01:00]} 49. Kg4 {[%clk 0:00:16]}  Kf7 {[%clk 0:01:00]} 50. Kf4 {[%clk 0:00:16]}  Kg6 {[%clk 0:01:01]} 51. Bf8 {[%clk 0:00:16]}  Kh7 {[%clk 0:01:01]} 52. Bg7 {[%clk 0:00:13]}  Kg6 {[%clk 0:01:01]} 53. Bf8 {[%clk 0:00:14]} 1/2-1/2

[Event "December 19 Late 2023"]
[Site "https://www.chess.com"]
[Date "2023.12.19"]
[Round "4"]
[White "Solon, Nathan"]
[Black "Perea Fruet, Lorenzo"]
[Result "1-0"]
[Board "59"]
[TimeControl "180+1"]
[WhiteFideId "2017229"]
[BlackFideId "24595870"]
[WhiteElo "2660"]
[BlackElo "2268"]
[WhiteTeam "USA"]
[BlackTeam "ESP"]
[WhiteClock "0:00:26"]
[BlackClock "0:00:00"]

1. d4 {[%clk 0:03:00]}  b6 {[%clk 0:02:11]} 2. e4 {[%clk 0:02:58]}  Bb7 {[%clk 0:02:12]} 3. Bd3 {[%clk 0:02:57]}  e6 {[%clk 0:02:12]} 4. Nf3 {[%clk 0:02:57]}  Nf6 {[%clk 0:02:04]} 5. Qe2 {[%clk 0:02:57]}  d5 {[%clk 0:02:04]} 6. e5 {[%clk 0:02:57]}  Ne4 {[%clk 0:02:05]} 7. O-O {[%clk 0:02:57]}  c5 {[%clk 0:02:04]} 8. c3 {[%clk 0:02:57]}  a5 {[%clk 0:02:03]} 9. Nbd2 {[%clk 0:02:34]}  Nxd2 {[%clk 0:02:03]} 10. Bxd2 {[%clk 0:02:35]}  Ba6 {[%clk 0:02:03]} 11. c4 {[%clk 0:02:32]}  Nc6 {[%clk 0:01:55]} 12. Rac1 {[%clk 0:02:25]}  dxc4 {[%clk 0:01:55]} 13. Bxc4 {[%clk 0:02:26]}  Bxc4 {[%clk 0:01:55]} 14. Qxc4 {[%clk 0:02:05]}  Qd5 {[%clk 0:01:42]} 15. Qa4 {[%clk 0:01:56]}  Be7 {[%clk 0:01:33]} 16. dxc5 {[%clk 0:01:55]}  Bxc5 {[%clk 0:01:30]} 17. Be3 {[%clk 0:01:48]}  O-O {[%clk 0:01:26]} 18. Rfd1 {[%clk 0:01:47]}  Bxe3 {[%clk 0:00:59]} 19. Rxd5 {[%clk 0:01:35]}  Bxc1 {[%clk 0:00:59]} 20. Rd1 {[%clk 0:01:35]}  Nxe5 {[%clk 0:00:55]} 21. Nxe5 {[%clk 0:01:18]}  Bxb2 {[%clk 0:00:55]} 22. Nd7 {[%clk 0:01:12]}  Rfd8 {[%clk 0:00:55]} 23. Nxb6 {[%clk 0:01:12]}  Rxd1+ {[%clk 0:00:49]} 24. Qxd1 {[%clk 0:01:13]}  Rb8 {[%clk 0:00:47]} 25. Nc4 {[%clk 0:01:13]}  Bc3 {[%clk 0:00:45]} 26. g3 {[%clk 0:01:13]}  h6 {[%clk 0:00:39]} 27. Qd7 {[%clk 0:01:12]}  g6 {[%clk 0:00:32]} 28. Nd6 {[%clk 0:01:10]}  Rf8 {[%clk 0:00:31]} 29. a4 {[%clk 0:01:05]}  Bb4 {[%clk 0:00:28]} 30. Nc4 {[%clk 0:00:58]}  Kg7 {[%clk 0:00:24]} 31. h4 {[%clk 0:00:56]}  h5 {[%clk 0:00:23]} 32. Kg2 {[%clk 0:00:55]}  Kg8 {[%clk 0:00:22]} 33. Qa7 {[%clk 0:00:52]}  Rc8 {[%clk 0:00:17]} 34. Ne5 {[%clk 0:00:48]}  Rf8 {[%clk 0:00:16]} 35. Nc6 {[%clk 0:00:45]}  Bc3 {[%clk 0:00:04]} 36. Nxa5 {[%clk 0:00:43]}  Rc8 {[%clk 0:00:04]} 37. Qb7 {[%clk 0:00:36]}  Rd8 {[%clk 0:00:03]} 38. Nc6 {[%clk 0:00:34]}  Rd2 {[%clk 0:00:03]} 39. a5 {[%clk 0:00:27]}  Ra2 {[%clk 0:00:03]} 40. a6 {[%clk 0:00:26]}  Bd4 {[%clk 0:00:00]} 41. Nxd4 {[%clk 0:00:26]} 1-0

[Event "December 19 Late 2023"]
[Site "https://www.chess.com"]
[Date "2023.12.19"]
[Round "4"]
[White "Cervantes Landeiro, Thalia"]
[Black "Manukyan, Sargis A."]
[Result "0-1"]
[Board "60"]
[TimeControl "180+1"]
[WhiteFideId "3520498"]
[BlackFideId "13303970"]
[WhiteElo "2189"]
[BlackElo "2186"]
[WhiteTeam "USA"]
[BlackTeam "ARM"]
[WhiteClock "0:00:00"]
[BlackClock "0:01:24"]

1. d4 {[%clk 0:03:00]}  d5 {[%clk 0:03:00]} 2. c4 {[%clk 0:03:01]}  e6 {[%clk 0:02:59]} 3. Nc3 {[%clk 0:03:01]}  Nf6 {[%clk 0:03:00]} 4. cxd5 {[%clk 0:03:00]}  Nxd5 {[%clk 0:03:00]} 5. e4 {[%clk 0:02:59]}  Nxc3 {[%clk 0:03:00]} 6. bxc3 {[%clk 0:03:00]}  c5 {[%clk 0:03:01]} 7. Nf3 {[%clk 0:03:00]}  cxd4 {[%clk 0:03:01]} 8. cxd4 {[%clk 0:03:00]}  Bb4+ {[%clk 0:03:02]} 9. Bd2 {[%clk 0:03:01]}  Bxd2+ {[%clk 0:03:03]} 10. Qxd2 {[%clk 0:03:01]}  O-O {[%clk 0:03:03]} 11. Bc4 {[%clk 0:03:00]}  b6 {[%clk 0:03:04]} 12. O-O {[%clk 0:03:00]}  Nd7 {[%clk 0:03:04]} 13. Rfe1 {[%clk 0:02:59]}  Bb7 {[%clk 0:03:05]} 14. Bb3 {[%clk 0:02:59]}  Rc8 {[%clk 0:03:06]} 15. Rad1 {[%clk 0:02:59]}  h6 {[%clk 0:03:06]} 16. d5 {[%clk 0:02:55]}  exd5 {[%clk 0:03:02]} 17. exd5 {[%clk 0:02:56]}  Nc5 {[%clk 0:03:02]} 18. d6 {[%clk 0:02:51]}  Nxb3 {[%clk 0:03:00]} 19. axb3 {[%clk 0:02:51]}  Bxf3 {[%clk 0:03:01]} 20. gxf3 {[%clk 0:02:50]}  Qf6 {[%clk 0:02:55]} 21. d7 {[%clk 0:02:43]}  Rcd8 {[%clk 0:02:45]} 22. Re3 {[%clk 0:02:34]}  Qg6+ {[%clk 0:02:23]} 23. Kh1 {[%clk 0:02:30]}  Kh7 {[%clk 0:02:24]} 24. Qd5 {[%clk 0:01:52]}  f5 {[%clk 0:02:16]} 25. Re7 {[%clk 0:01:34]}  Qf6 {[%clk 0:02:11]} 26. Re6 {[%clk 0:01:33]}  Qg5 {[%clk 0:01:58]} 27. Qe5 {[%clk 0:01:27]}  Rf7 {[%clk 0:01:54]} 28. Rg1 {[%clk 0:00:28]}  Qh5 {[%clk 0:01:53]} 29. Reg6 {[%clk 0:00:07]}  Rdxd7 {[%clk 0:01:49]} 30. Qc3 {[%clk 0:00:03]}  Qxg6 {[%clk 0:01:46]} 31. Rxg6 {[%clk 0:00:02]}  Kxg6 {[%clk 0:01:47]} 32. Qc6+ {[%clk 0:00:03]}  Kh7 {[%clk 0:01:48]} 33. Kg2 {[%clk 0:00:03]}  Rde7 {[%clk 0:01:47]} 34. Qd5 {[%clk 0:00:03]}  Rf6 {[%clk 0:01:46]} 35. Qd8 {[%clk 0:00:03]}  Rg6+ {[%clk 0:01:46]} 36. Kf1 {[%clk 0:00:03]}  Rge6 {[%clk 0:01:36]} 37. f4 {[%clk 0:00:02]}  Re1+ {[%clk 0:01:34]} 38. Kg2 {[%clk 0:00:02]}  R7e6 {[%clk 0:01:34]} 39. Qd7 {[%clk 0:00:03]}  a5 {[%clk 0:01:33]} 40. Qb7 {[%clk 0:00:02]}  Rg6+ {[%clk 0:01:32]} 41. Kf3 {[%clk 0:00:02]}  Rc1 {[%clk 0:01:31]} 42. Qd7 {[%clk 0:00:03]}  Rc3+ {[%clk 0:01:31]} 43. Ke2 {[%clk 0:00:03]}  Rf6 {[%clk 0:01:31]} 44. Qd5 {[%clk 0:00:03]}  Rc5 {[%clk 0:01:31]} 45. Qd3 {[%clk 0:00:01]}  b5 {[%clk 0:01:30]} 46. Kf3 {[%clk 0:00:02]}  Rfc6 {[%clk 0:01:30]} 47. Kg2 {[%clk 0:00:01]}  a4 {[%clk 0:01:29]} 48. bxa4 {[%clk 0:00:01]}  bxa4 {[%clk 0:01:30]} 49. Qa3 {[%clk 0:00:02]}  Rc4 {[%clk 0:01:30]} 50. Qf8 {[%clk 0:00:02]}  Rxf4 {[%clk 0:01:29]} 51. Qa8 {[%clk 0:00:01]}  Rg4+ {[%clk 0:01:29]} 52. Kf3 {[%clk 0:00:01]}  Rc3+ {[%clk 0:01:28]} 53. Ke2 {[%clk 0:00:01]}  a3 {[%clk 0:01:28]} 54. Kd2 {[%clk 0:00:02]}  Rh3 {[%clk 0:01:25]} 55. Qc8 {[%clk 0:00:02]}  Rd4+ {[%clk 0:01:24]} 56. Kc2 {[%clk 0:00:00]}  Rf4 {[%clk 0:01:24]} 0-1

[Event "December 19 Late 2023"]
[Site "https://www.chess.com"]
[Date "2023.12.19"]
[Round "4"]
[White "User234564"]
[Black "Yashmetov, Mikhail"]
[Result "1-0"]
[Board "63"]
[TimeControl "180+1"]
[BlackFideId "24198900"]
[WhiteElo "2648"]
[BlackElo "2220"]
[BlackTeam "RUS"]
[WhiteClock "0:00:54"]
[BlackClock "0:00:02"]

1. d4 {[%clk 0:02:51]}  Nf6 {[%clk 0:02:58]} 2. c4 {[%clk 0:02:49]}  e6 {[%clk 0:02:56]} 3. g3 {[%clk 0:02:47]}  d5 {[%clk 0:02:54]} 4. Bg2 {[%clk 0:02:44]}  Be7 {[%clk 0:02:54]} 5. Nf3 {[%clk 0:02:43]}  O-O {[%clk 0:02:54]} 6. Nc3 {[%clk 0:02:42]}  dxc4 {[%clk 0:02:47]} 7. Ne5 {[%clk 0:02:41]}  Nc6 {[%clk 0:02:44]} 8. Bxc6 {[%clk 0:02:40]}  bxc6 {[%clk 0:02:45]} 9. Nxc6 {[%clk 0:02:41]}  Qe8 {[%clk 0:02:45]} 10. Nxe7+ {[%clk 0:02:41]}  Qxe7 {[%clk 0:02:46]} 11. Qa4 {[%clk 0:02:42]}  c5 {[%clk 0:02:38]} 12. dxc5 {[%clk 0:02:43]}  Qxc5 {[%clk 0:02:38]} 13. Be3 {[%clk 0:02:42]}  Qc7 {[%clk 0:02:34]} 14. f3 {[%clk 0:02:42]}  Nd5 {[%clk 0:02:32]} 15. Bd4 {[%clk 0:02:42]}  Bd7 {[%clk 0:02:30]} 16. Qa3 {[%clk 0:02:39]}  Bc6 {[%clk 0:02:22]} 17. Kf2 {[%clk 0:02:38]}  e5 {[%clk 0:02:16]} 18. Nxd5 {[%clk 0:02:34]}  Bxd5 {[%clk 0:02:15]} 19. Qc5 {[%clk 0:02:17]}  Qxc5 {[%clk 0:01:36]} 20. Bxc5 {[%clk 0:02:18]}  Rfb8 {[%clk 0:01:36]} 21. Rhd1 {[%clk 0:02:12]}  Be6 {[%clk 0:01:36]} 22. Rd2 {[%clk 0:02:09]}  Rb5 {[%clk 0:01:35]} 23. Bd6 {[%clk 0:02:07]}  f6 {[%clk 0:01:31]} 24. Rc1 {[%clk 0:02:01]}  Rd8 {[%clk 0:01:29]} 25. g4 {[%clk 0:01:54]}  Kf7 {[%clk 0:01:25]} 26. h4 {[%clk 0:01:53]}  h6 {[%clk 0:00:50]} 27. Rcc2 {[%clk 0:01:45]}  Rd7 {[%clk 0:00:44]} 28. Ba3 {[%clk 0:01:45]}  Rbb7 {[%clk 0:00:42]} 29. Ke3 {[%clk 0:01:42]}  Bd5 {[%clk 0:00:40]} 30. Rc1 {[%clk 0:01:40]}  Ke6 {[%clk 0:00:41]} 31. Rg1 {[%clk 0:01:39]}  Rbc7 {[%clk 0:00:34]} 32. Rc1 {[%clk 0:01:36]}  Rc6 {[%clk 0:00:31]} 33. Bb4 {[%clk 0:01:36]}  Rb7 {[%clk 0:00:31]} 34. Bc3 {[%clk 0:01:36]}  Rb5 {[%clk 0:00:31]} 35. Rg1 {[%clk 0:01:36]}  Ra6 {[%clk 0:00:30]} 36. a3 {[%clk 0:01:36]}  Rc6 {[%clk 0:00:29]} 37. Kf2 {[%clk 0:01:36]}  Rb7 {[%clk 0:00:28]} 38. g5 {[%clk 0:01:36]}  hxg5 {[%clk 0:00:28]} 39. hxg5 {[%clk 0:01:37]}  f5 {[%clk 0:00:28]} 40. Rh1 {[%clk 0:01:37]}  Rd7 {[%clk 0:00:23]} 41. Rh8 {[%clk 0:01:36]}  e4 {[%clk 0:00:22]} 42. g6 {[%clk 0:01:31]}  f4 {[%clk 0:00:18]} 43. fxe4 {[%clk 0:01:29]}  Bxe4 {[%clk 0:00:19]} 44. Re8+ {[%clk 0:01:28]}  Re7 {[%clk 0:00:19]} 45. Rf8 {[%clk 0:01:19]}  Bxg6 {[%clk 0:00:17]} 46. Rxf4 {[%clk 0:01:19]}  Rf7 {[%clk 0:00:17]} 47. Kg3 {[%clk 0:01:18]}  Rxf4 {[%clk 0:00:15]} 48. Kxf4 {[%clk 0:01:19]}  Rc5 {[%clk 0:00:12]} 49. e4 {[%clk 0:01:17]}  Rh5 {[%clk 0:00:11]} 50. e5 {[%clk 0:01:11]}  Bd3 {[%clk 0:00:08]} 51. Rg2 {[%clk 0:01:10]}  Rf5+ {[%clk 0:00:05]} 52. Ke3 {[%clk 0:01:10]}  g5 {[%clk 0:00:05]} 53. Rh2 {[%clk 0:01:09]}  Rf1 {[%clk 0:00:04]} 54. Rh6+ {[%clk 0:01:09]}  Kd5 {[%clk 0:00:04]} 55. Rd6+ {[%clk 0:01:09]}  Kc5 {[%clk 0:00:04]} 56. Bb4+ {[%clk 0:00:53]}  Kb5 {[%clk 0:00:04]} 57. e6 {[%clk 0:00:53]}  g4 {[%clk 0:00:04]} 58. e7 {[%clk 0:00:54]}  a5 {[%clk 0:00:02]} 59. e8=Q# {[%clk 0:00:54]} 1-0

[Event "December 19 Late 2023"]
[Site "https://www.chess.com"]
[Date "2023.12.19"]
[Round "4"]
[White "Kovacsy, Barnabas"]
[Black "Bjelobrk, Igor"]
[Result "0-1"]
[Board "65"]
[TimeControl "180+1"]
[WhiteFideId "769290"]
[BlackFideId "4300726"]
[WhiteElo "2130"]
[BlackElo "2319"]
[WhiteTeam "HUN"]
[BlackTeam "AUS"]
[WhiteClock "0:00:09"]
[BlackClock "0:00:13"]

1. e4 {[%clk 0:03:00]}  e6 {[%clk 0:02:56]} 2. d4 {[%clk 0:03:00]}  d5 {[%clk 0:02:55]} 3. Nc3 {[%clk 0:03:00]}  Bb4 {[%clk 0:02:54]} 4. e5 {[%clk 0:03:00]}  b6 {[%clk 0:02:53]} 5. a3 {[%clk 0:02:50]}  Bf8 {[%clk 0:02:52]} 6. f4 {[%clk 0:02:48]}  Ne7 {[%clk 0:02:46]} 7. Nf3 {[%clk 0:02:47]}  h5 {[%clk 0:02:37]} 8. Bd3 {[%clk 0:02:44]}  Ba6 {[%clk 0:02:35]} 9. Be3 {[%clk 0:02:38]}  Qd7 {[%clk 0:02:14]} 10. Bxa6 {[%clk 0:02:25]}  Nxa6 {[%clk 0:02:13]} 11. Qd3 {[%clk 0:02:25]}  Nb8 {[%clk 0:02:13]} 12. O-O {[%clk 0:02:13]}  Nbc6 {[%clk 0:02:10]} 13. b3 {[%clk 0:02:09]}  O-O-O {[%clk 0:02:03]} 14. Ne2 {[%clk 0:02:07]}  Kb8 {[%clk 0:02:01]} 15. c4 {[%clk 0:02:05]}  Na5 {[%clk 0:01:44]} 16. Rab1 {[%clk 0:01:58]}  Nf5 {[%clk 0:01:42]} 17. Rfd1 {[%clk 0:01:49]}  Bxa3 {[%clk 0:01:39]} 18. c5 {[%clk 0:01:37]}  Bb4 {[%clk 0:01:35]} 19. Bd2 {[%clk 0:01:34]}  Bxd2 {[%clk 0:01:34]} 20. Qxd2 {[%clk 0:01:33]}  Qb5 {[%clk 0:01:23]} 21. Ne1 {[%clk 0:01:13]}  bxc5 {[%clk 0:01:16]} 22. Nc3 {[%clk 0:01:08]}  Qb4 {[%clk 0:01:12]} 23. Nc2 {[%clk 0:01:08]}  Qb7 {[%clk 0:01:02]} 24. dxc5 {[%clk 0:01:00]}  d4 {[%clk 0:00:58]} 25. Na4 {[%clk 0:00:54]}  Nc6 {[%clk 0:00:53]} 26. b4 {[%clk 0:00:47]}  d3 {[%clk 0:00:42]} 27. Ne3 {[%clk 0:00:44]}  Ncd4 {[%clk 0:00:34]} 28. Nxf5 {[%clk 0:00:38]}  exf5 {[%clk 0:00:19]} 29. Qxd3 {[%clk 0:00:27]}  h4 {[%clk 0:00:19]} 30. h3 {[%clk 0:00:26]}  Rh6 {[%clk 0:00:19]} 31. b5 {[%clk 0:00:23]}  Qd5 {[%clk 0:00:19]} 32. Nc3 {[%clk 0:00:22]}  Qxc5 {[%clk 0:00:16]} 33. Qe3 {[%clk 0:00:15]}  Rg6 {[%clk 0:00:15]} 34. Kf2 {[%clk 0:00:15]}  Rg3 {[%clk 0:00:14]} 35. Na4 {[%clk 0:00:13]}  Qd5 {[%clk 0:00:12]} 36. Rg1 {[%clk 0:00:08]}  Rxe3 {[%clk 0:00:11]} 37. Kxe3 {[%clk 0:00:09]}  Qe4+ {[%clk 0:00:12]} 38. Kf2 {[%clk 0:00:09]}  Qxf4+ {[%clk 0:00:12]} 39. Ke1 {[%clk 0:00:09]}  Nc2+ {[%clk 0:00:13]} 40. Ke2 {[%clk 0:00:09]}  Rd2# {[%clk 0:00:13]} 0-1

[Event "December 19 Late 2023"]
[Site "https://www.chess.com"]
[Date "2023.12.19"]
[Round "4"]
[White "Atanejhad, Sahebali"]
[Black "Karttunen, Mika"]
[Result "0-1"]
[Board "69"]
[TimeControl "180+1"]
[WhiteFideId "12506664"]
[BlackFideId "502081"]
[WhiteElo "1957"]
[BlackElo "2396"]
[WhiteTeam "IRI"]
[BlackTeam "FIN"]
[WhiteClock "0:01:25"]
[BlackClock "0:01:11"]

1. d4 {[%clk 0:02:58]}  Nf6 {[%clk 0:02:59]} 2. c4 {[%clk 0:02:58]}  g6 {[%clk 0:02:59]} 3. Nc3 {[%clk 0:02:58]}  Bg7 {[%clk 0:02:59]} 4. e4 {[%clk 0:02:59]}  d6 {[%clk 0:02:59]} 5. Be2 {[%clk 0:02:59]}  O-O {[%clk 0:02:59]} 6. Nf3 {[%clk 0:03:00]}  e5 {[%clk 0:02:59]} 7. O-O {[%clk 0:03:00]}  Nc6 {[%clk 0:02:59]} 8. d5 {[%clk 0:03:00]}  Ne7 {[%clk 0:02:59]} 9. Ne1 {[%clk 0:03:01]}  Nd7 {[%clk 0:02:59]} 10. Be3 {[%clk 0:03:01]}  f5 {[%clk 0:02:59]} 11. f3 {[%clk 0:03:02]}  f4 {[%clk 0:02:59]} 12. Bf2 {[%clk 0:03:02]}  g5 {[%clk 0:03:00]} 13. Rc1 {[%clk 0:03:00]}  Ng6 {[%clk 0:02:55]} 14. c5 {[%clk 0:03:00]}  Nxc5 {[%clk 0:02:37]} 15. b4 {[%clk 0:02:53]}  Na6 {[%clk 0:02:37]} 16. Nd3 {[%clk 0:02:53]}  h5 {[%clk 0:02:29]} 17. b5 {[%clk 0:02:52]}  Nb8 {[%clk 0:02:28]} 18. a4 {[%clk 0:02:51]}  Nd7 {[%clk 0:02:20]} 19. a5 {[%clk 0:02:50]}  b6 {[%clk 0:02:16]} 20. Nb4 {[%clk 0:02:47]}  Nc5 {[%clk 0:02:15]} 21. Nc6 {[%clk 0:02:47]}  Qd7 {[%clk 0:02:11]} 22. Bxc5 {[%clk 0:02:41]}  bxc5 {[%clk 0:02:05]} 23. Kh1 {[%clk 0:02:24]}  g4 {[%clk 0:02:05]} 24. Rb1 {[%clk 0:02:06]}  Nh4 {[%clk 0:02:01]} 25. b6 {[%clk 0:02:01]}  axb6 {[%clk 0:02:00]} 26. axb6 {[%clk 0:02:02]}  cxb6 {[%clk 0:02:00]} 27. Rxb6 {[%clk 0:02:03]}  g3 {[%clk 0:01:32]} 28. Nb5 {[%clk 0:01:49]}  Nxg2 {[%clk 0:01:22]} 29. Rg1 {[%clk 0:01:46]}  Ne3 {[%clk 0:01:20]} 30. Qd2 {[%clk 0:01:38]}  g2+ {[%clk 0:01:17]} 31. Rxg2 {[%clk 0:01:36]}  Nxg2 {[%clk 0:01:17]} 32. Kxg2 {[%clk 0:01:37]}  Qh3+ {[%clk 0:01:12]} 33. Kh1 {[%clk 0:01:25]}  Ra1+ {[%clk 0:01:11]} 0-1

[Event "December 19 Late 2023"]
[Site "https://www.chess.com"]
[Date "2023.12.19"]
[Round "4"]
[White "Storn, Justin"]
[Black "Golubev, Mikhail"]
[Result "1-0"]
[Board "72"]
[TimeControl "180+1"]
[WhiteFideId "30922720"]
[BlackFideId "14100983"]
[WhiteElo "2416"]
[BlackElo "2352"]
[WhiteTeam "USA"]
[BlackTeam "UKR"]
[WhiteClock "0:00:03"]
[BlackClock "0:00:00"]

1. Nf3 {[%clk 0:03:00]}  d6 {[%clk 0:02:57]} 2. g3 {[%clk 0:02:59]}  g6 {[%clk 0:02:56]} 3. d4 {[%clk 0:02:59]}  Bg7 {[%clk 0:02:56]} 4. b3 {[%clk 0:02:59]}  c5 {[%clk 0:02:52]} 5. Bb2 {[%clk 0:02:53]}  Nc6 {[%clk 0:02:33]} 6. e3 {[%clk 0:02:27]}  Bg4 {[%clk 0:02:06]} 7. Nbd2 {[%clk 0:02:08]}  cxd4 {[%clk 0:02:04]} 8. h3 {[%clk 0:02:02]}  Bxf3 {[%clk 0:01:42]} 9. Nxf3 {[%clk 0:02:03]}  Qa5+ {[%clk 0:01:25]} 10. Qd2 {[%clk 0:01:52]}  Qxd2+ {[%clk 0:01:24]} 11. Nxd2 {[%clk 0:01:52]}  Kf8 {[%clk 0:01:24]} 12. exd4 {[%clk 0:01:37]}  Bxd4 {[%clk 0:01:23]} 13. O-O-O {[%clk 0:01:32]}  Bxb2+ {[%clk 0:01:22]} 14. Kxb2 {[%clk 0:01:32]}  Nf6 {[%clk 0:01:22]} 15. Bg2 {[%clk 0:01:32]}  Kg7 {[%clk 0:01:21]} 16. Rhe1 {[%clk 0:01:31]}  Rhe8 {[%clk 0:01:13]} 17. a4 {[%clk 0:01:27]}  d5 {[%clk 0:01:01]} 18. g4 {[%clk 0:01:20]}  h6 {[%clk 0:00:58]} 19. Nb1 {[%clk 0:00:56]}  e6 {[%clk 0:00:56]} 20. c4 {[%clk 0:00:44]}  dxc4 {[%clk 0:00:53]} 21. Bxc6 {[%clk 0:00:39]}  bxc6 {[%clk 0:00:52]} 22. bxc4 {[%clk 0:00:39]}  Rab8+ {[%clk 0:00:50]} 23. Kc3 {[%clk 0:00:36]}  a5 {[%clk 0:00:44]} 24. Na3 {[%clk 0:00:24]}  Rb7 {[%clk 0:00:24]} 25. Rb1 {[%clk 0:00:19]}  Reb8 {[%clk 0:00:24]} 26. Rxb7 {[%clk 0:00:18]}  Rxb7 {[%clk 0:00:25]} 27. Nc2 {[%clk 0:00:19]}  Nd7 {[%clk 0:00:18]} 28. Rd1 {[%clk 0:00:17]}  Nc5 {[%clk 0:00:18]} 29. Ra1 {[%clk 0:00:11]}  Rb3+ {[%clk 0:00:14]} 30. Kd4 {[%clk 0:00:12]}  Nd7 {[%clk 0:00:13]} 31. Ne3 {[%clk 0:00:12]}  c5+ {[%clk 0:00:12]} 32. Ke4 {[%clk 0:00:12]}  f5+ {[%clk 0:00:11]} 33. gxf5 {[%clk 0:00:13]}  exf5+ {[%clk 0:00:10]} 34. Kd5 {[%clk 0:00:12]}  Rd3+ {[%clk 0:00:08]} 35. Kc6 {[%clk 0:00:12]}  Kf7 {[%clk 0:00:07]} 36. Nd5 {[%clk 0:00:11]}  Rd4 {[%clk 0:00:07]} 37. Kxd7 {[%clk 0:00:10]}  Rxc4 {[%clk 0:00:07]} 38. Kc6 {[%clk 0:00:05]}  Rc2 {[%clk 0:00:06]} 39. Kb5 {[%clk 0:00:03]}  Rxf2 {[%clk 0:00:05]} 40. Kxa5 {[%clk 0:00:03]}  Ke6 {[%clk 0:00:05]} 41. Nb6 {[%clk 0:00:03]}  Rb2 {[%clk 0:00:04]} 42. Ka6 {[%clk 0:00:02]}  Rb4 {[%clk 0:00:03]} 43. a5 {[%clk 0:00:02]}  f4 {[%clk 0:00:03]} 44. Rd1 {[%clk 0:00:03]}  f3 {[%clk 0:00:00]} 45. Kb7 {[%clk 0:00:03]} 1-0